[Event "Schack-SM 2022: Sverigemastarklassen"]
[Site "Fyrishov, Idrottsgatan 2, Uppsala, Sweden"]
[Date "2022.07.02"]
[Round "1.2"]
[White "Blomqvist, Erik"]
[Black "Seo, Jung Min"]
[Result "1/2-1/2"]
[TimeControl "90 minutes for 40 moves + 30 minutes for the rest of the game + 30 seconds per move from move one."]
[WhiteTitle "GM"]
[BlackTitle "IM"]
[WhiteFideId "1709437"]
[BlackFideId "1734687"]
[WhiteElo "2521"]
[BlackElo "2492"]

1. e4 {[%clk 01:30:49]} {[%emt 00:00:10]} e5 {[%clk 01:30:56]} {[%emt
00:00:05]} 2. Nc3 {[%clk 01:31:00]} {[%emt 00:00:17]} Nc6 {[%clk 01:31:19]}
{[%emt 00:00:08]} 3. Bc4 {[%clk 01:31:03]} {[%emt 00:00:27]} Nf6 {[%clk
01:30:28]} {[%emt 00:01:22]} 4. d3 {[%clk 01:31:08]} {[%emt 00:00:25]} Na5
{[%clk 01:28:03]} {[%emt 00:02:55]} 5. Qf3 {[%clk 01:30:45]} {[%emt 00:00:52]}
Nxc4 {[%clk 01:28:11]} {[%emt 00:00:23]} 6. dxc4 {[%clk 01:31:07]} {[%emt
00:00:08]} Be7 {[%clk 01:24:03]} {[%emt 00:04:38]} 7. Nge2 {[%clk 01:30:32]}
{[%emt 00:01:04]} d6 {[%clk 01:24:08]} {[%emt 00:00:26]} 8. h3 {[%clk
01:30:19]} {[%emt 00:00:42]} Be6 {[%clk 01:23:08]} {[%emt 00:01:30]} 9. b3
{[%clk 01:30:36]} {[%emt 00:00:13]} O-O {[%clk 01:21:40]} {[%emt 00:01:58]} 10.
O-O {[%clk 01:30:28]} {[%emt 00:00:38]} c6 {[%clk 01:18:59]} {[%emt 00:03:11]}
11. Rd1 {[%clk 01:30:30]} {[%emt 00:00:28]} Qa5 {[%clk 01:18:26]} {[%emt
00:01:04]} 12. a4 {[%clk 01:29:42]} {[%emt 00:01:18]} Rad8 {[%clk 01:18:32]}
{[%emt 00:00:23]} 13. Bd2 {[%clk 01:14:14]} {[%emt 00:15:58]} Qc7 {[%clk
01:15:52]} {[%emt 00:03:10]} 14. Be3 {[%clk 01:14:30]} {[%emt 00:00:14]} Qa5
{[%clk 01:14:57]} {[%emt 00:01:26]} 15. Bg5 {[%clk 01:06:39]} {[%emt 00:08:20]}
h6 {[%clk 01:10:46]} {[%emt 00:04:41]} 16. Bd2 {[%clk 01:06:49]} {[%emt
00:00:20]} Qc7 {[%clk 01:11:10]} {[%emt 00:00:06]} 17. Be3 {[%clk 00:48:54]}
{[%emt 00:18:25]} Qa5 {[%clk 01:11:02]} {[%emt 00:00:38]} 18. Bd2 {[%clk
00:44:41]} {[%emt 00:04:43]} Qc7 {[%clk 01:11:18]} {[%emt 00:00:15]} 19. Be3
{[%clk 00:45:03]} {[%emt 00:00:08]} Qa5 {[%clk 01:11:44]} {[%emt 00:00:03]} 20.
Bd2 {[%clk 00:45:27]} {[%emt 00:00:06]} Qc7 {[%clk 01:12:11]} {[%emt 00:00:03]}
21. Be3 {[%clk 00:45:53]} {[%emt 00:00:04]} Qa5 {[%clk 01:12:26]} {[%emt
00:00:15]} 1/2-1/2

[Event "Schack-SM 2022: Sverigemastarklassen"]
[Site "Fyrishov, Idrottsgatan 2, Uppsala, Sweden"]
[Date "2022.07.02"]
[Round "1.3"]
[White "Jogstad, Martin"]
[Black "Carlsson, Ludvig"]
[Result "1/2-1/2"]
[TimeControl "90 minutes for 40 moves + 30 minutes for the rest of the game + 30 seconds per move from move one."]
[WhiteTitle "FM"]
[BlackTitle "IM"]
[WhiteFideId "1715364"]
[BlackFideId "1727010"]
[WhiteElo "2384"]
[BlackElo "2399"]

1. d4 {[%clk 01:30:54]} {[%emt 00:00:05]} d5 {[%clk 01:30:41]} {[%emt
00:00:19]} 2. c4 {[%clk 01:31:18]} {[%emt 00:00:07]} e6 {[%clk 01:30:59]}
{[%emt 00:00:12]} 3. Nc3 {[%clk 01:31:42]} {[%emt 00:00:06]} c5 {[%clk
01:30:21]} {[%emt 00:01:09]} 4. cxd5 {[%clk 01:31:51]} {[%emt 00:00:21]} exd5
{[%clk 01:30:03]} {[%emt 00:00:47]} 5. Nf3 {[%clk 01:32:15]} {[%emt 00:00:06]}
Nc6 {[%clk 01:30:25]} {[%emt 00:00:08]} 6. g3 {[%clk 01:32:40]} {[%emt
00:00:05]} Nf6 {[%clk 01:30:47]} {[%emt 00:00:07]} 7. Bg2 {[%clk 01:33:06]}
{[%emt 00:00:05]} cxd4 {[%clk 01:31:09]} {[%emt 00:00:08]} 8. Nxd4 {[%clk
01:33:31]} {[%emt 00:00:05]} Bc5 {[%clk 01:31:32]} {[%emt 00:00:07]} 9. Nb3
{[%clk 01:33:47]} {[%emt 00:00:15]} Bb6 {[%clk 01:31:52]} {[%emt 00:00:10]} 10.
O-O {[%clk 01:33:43]} {[%emt 00:00:33]} d4 {[%clk 01:32:07]} {[%emt 00:00:15]}
11. Na4 {[%clk 01:33:58]} {[%emt 00:00:16]} O-O {[%clk 01:32:24]} {[%emt
00:00:12]} 12. Bg5 {[%clk 01:34:19]} {[%emt 00:00:09]} Re8 {[%clk 01:32:11]}
{[%emt 00:00:43]} 13. Re1 {[%clk 01:34:42]} {[%emt 00:00:08]} h6 {[%clk
01:32:30]} {[%emt 00:00:10]} 14. Bxf6 {[%clk 01:35:03]} {[%emt 00:00:10]} Qxf6
{[%clk 01:32:50]} {[%emt 00:00:09]} 15. Nxb6 {[%clk 01:35:17]} {[%emt
00:00:17]} axb6 {[%clk 01:33:12]} {[%emt 00:00:08]} 16. Bxc6 {[%clk 01:35:18]}
{[%emt 00:00:28]} bxc6 {[%clk 01:33:36]} {[%emt 00:00:07]} 17. Qxd4 {[%clk
01:35:40]} {[%emt 00:00:08]} Qd8 {[%clk 01:33:53]} {[%emt 00:00:13]} 18. Qc3
{[%clk 01:35:53]} {[%emt 00:00:17]} c5 {[%clk 01:31:45]} {[%emt 00:02:37]} 19.
Rad1 {[%clk 01:35:59]} {[%emt 00:00:25]} Qc7 {[%clk 01:28:25]} {[%emt
00:03:49]} 20. a3 {[%clk 01:36:20]} {[%emt 00:00:10]} Bb7 {[%clk 01:27:35]}
{[%emt 00:01:19]} 21. Nd4 {[%clk 01:36:40]} {[%emt 00:00:10]} Qd7 {[%clk
01:16:16]} {[%emt 00:11:48]} 22. Nc2 {[%clk 01:28:22]} {[%emt 00:08:49]} Qc6
{[%clk 01:05:52]} {[%emt 00:10:54]} 23. f3 {[%clk 01:28:24]} {[%emt 00:00:28]}
h5 {[%clk 00:54:06]} {[%emt 00:12:16]} 24. e4 {[%clk 01:24:18]} {[%emt
00:04:36]} f5 {[%clk 00:47:36]} {[%emt 00:07:00]} 25. Ne3 {[%clk 01:12:47]}
{[%emt 00:12:01]} fxe4 {[%clk 00:46:55]} {[%emt 00:01:11]} 26. Nf5 {[%clk
01:08:46]} {[%emt 00:04:31]} Qc7 {[%clk 00:44:50]} {[%emt 00:02:35]} 27. Nxg7
{[%clk 00:56:59]} {[%emt 00:12:17]} Qxg7 {[%clk 00:41:33]} {[%emt 00:03:47]} 28.
Qxg7+ {[%clk 00:57:22]} {[%emt 00:00:07]} Kxg7 {[%clk 00:42:00]} {[%emt
00:00:03]} 29. Rd7+ {[%clk 00:57:45]} {[%emt 00:00:07]} Kg8 {[%clk 00:34:43]}
{[%emt 00:07:48]} 30. Rxb7 {[%clk 00:58:04]} {[%emt 00:00:11]} exf3 {[%clk
00:35:04]} {[%emt 00:00:09]} 31. Rxe8+ {[%clk 00:47:04]} {[%emt 00:11:30]} Rxe8
{[%clk 00:35:31]} {[%emt 00:00:02]} 32. Rxb6 {[%clk 00:47:13]} {[%emt
00:00:21]} Re2 {[%clk 00:35:38]} {[%emt 00:00:24]} 33. a4 {[%clk 00:23:25]}
{[%emt 00:24:17]} Rg2+ {[%clk 00:35:35]} {[%emt 00:00:33]} 34. Kf1 {[%clk
00:23:40]} {[%emt 00:00:16]} Rxh2 {[%clk 00:35:52]} {[%emt 00:00:12]} 35. a5
{[%clk 00:15:55]} {[%emt 00:08:16]} h4 {[%clk 00:35:33]} {[%emt 00:00:48]} 36.
gxh4 {[%clk 00:14:18]} {[%emt 00:02:07]} Rxh4 {[%clk 00:35:51]} {[%emt
00:00:12]} 37. Rb5 {[%clk 00:07:43]} {[%emt 00:07:05]} Kf7 {[%clk 00:34:54]}
{[%emt 00:01:28]} 38. Kf2 {[%clk 00:05:10]} {[%emt 00:03:03]} Ke6 {[%clk
00:34:41]} {[%emt 00:00:43]} 39. Kxf3 {[%clk 00:02:55]} {[%emt 00:02:44]} Kd5
{[%clk 00:33:34]} {[%emt 00:01:37]} 40. Ke3 {[%clk 00:01:42]} {[%emt 00:01:42]}
Ra4 {[%clk 00:33:39]} {[%emt 00:00:26]} 41. b3 {[%clk 00:28:48]} {[%emt
00:03:24]} Ra1 {[%clk 01:04:05]} {[%emt 00:00:04]} 42. Kd3 {[%clk 00:27:44]}
{[%emt 00:01:34]} Kc6 {[%clk 01:03:03]} {[%emt 00:01:32]} 43. Rb6+ {[%clk
00:27:15]} {[%emt 00:00:59]} Kc7 {[%clk 01:03:31]} {[%emt 00:00:02]} 44. Ra6
{[%clk 00:27:21]} {[%emt 00:00:25]} Kb7 {[%clk 01:03:51]} {[%emt 00:00:10]} 45.
Rb6+ {[%clk 00:27:43]} {[%emt 00:00:08]} Kc7 {[%clk 01:04:15]} {[%emt
00:00:05]} 46. Kc4 {[%clk 00:27:28]} {[%emt 00:00:45]} Rxa5 {[%clk 01:04:38]}
{[%emt 00:00:07]} 47. Rh6 {[%clk 00:26:35]} {[%emt 00:01:22]} Kb7 {[%clk
01:04:46]} {[%emt 00:00:23]} 48. Rh7+ {[%clk 00:26:47]} {[%emt 00:00:18]} Kb6
{[%clk 01:05:07]} {[%emt 00:00:10]} 49. Rh8 {[%clk 00:23:07]} {[%emt 00:04:09]}
Kb7 {[%clk 01:03:09]} {[%emt 00:02:28]} 50. Rg8 {[%clk 00:23:21]} {[%emt
00:00:16]} Ra3 {[%clk 01:02:57]} {[%emt 00:00:42]} 51. Rg3 {[%clk 00:23:24]}
{[%emt 00:00:27]} Kb6 {[%clk 01:03:10]} {[%emt 00:00:17]} 52. Rf3 {[%clk
00:23:39]} {[%emt 00:00:15]} Kc6 {[%clk 01:03:33]} {[%emt 00:00:07]} 53. Rf5
{[%clk 00:22:55]} {[%emt 00:01:13]} Kb6 {[%clk 01:03:48]} {[%emt 00:00:16]} 54.
Rg5 {[%clk 00:23:12]} {[%emt 00:00:13]} Ra5 {[%clk 01:04:08]} {[%emt 00:00:10]}
55. Rd5 {[%clk 00:23:02]} {[%emt 00:00:39]} Ra3 {[%clk 01:04:30]} {[%emt
00:00:09]} 56. Rd8 {[%clk 00:23:03]} {[%emt 00:00:29]} Ra5 {[%clk 01:04:52]}
{[%emt 00:00:08]} 57. Rb8+ {[%clk 00:23:24]} {[%emt 00:00:08]} Kc7 {[%clk
01:05:03]} {[%emt 00:00:20]} 58. Rb5 {[%clk 00:23:47]} {[%emt 00:00:07]} Rxb5
{[%clk 01:05:24]} {[%emt 00:00:09]} 59. Kxb5 {[%clk 00:24:11]} {[%emt
00:00:06]} Kd6 {[%clk 01:05:42]} {[%emt 00:00:11]} 60. b4 {[%clk 00:24:06]}
{[%emt 00:00:36]} cxb4 {[%clk 01:06:06]} {[%emt 00:00:05]} 1/2-1/2

[Event "Schack-SM 2022: Sverigemastarklassen"]
[Site "Fyrishov, Idrottsgatan 2, Uppsala, Sweden"]
[Date "2022.07.02"]
[Round "1.4"]
[White "Hillarp, Tiger"]
[Black "Hector, Jonny"]
[Result "1/2-1/2"]
[TimeControl "90 minutes for 40 moves + 30 minutes for the rest of the game + 30 seconds per move from move one."]
[WhiteTitle "GM"]
[BlackTitle "GM"]
[WhiteFideId "1700812"]
[BlackFideId "1700090"]
[WhiteElo "2516"]
[BlackElo "2441"]

1. Nf3 {[%clk 01:30:55]} {[%emt 00:00:04]} d5 {[%clk 01:30:49]} {[%emt
00:00:11]} 2. g3 {[%clk 01:31:19]} {[%emt 00:00:07]} Nc6 {[%clk 01:30:54]}
{[%emt 00:00:24]} 3. d4 {[%clk 01:31:33]} {[%emt 00:00:17]} Bf5 {[%clk
01:31:07]} {[%emt 00:00:16]} 4. Bg2 {[%clk 01:31:51]} {[%emt 00:00:12]} Nb4
{[%clk 01:31:00]} {[%emt 00:00:37]} 5. Na3 {[%clk 01:31:48]} {[%emt 00:00:34]}
e6 {[%clk 01:30:30]} {[%emt 00:00:59]} 6. c3 {[%clk 01:30:06]} {[%emt
00:02:13]} Nc6 {[%clk 01:30:39]} {[%emt 00:00:20]} 7. Qb3 {[%clk 01:30:22]}
{[%emt 00:00:15]} Bxa3 {[%clk 01:28:40]} {[%emt 00:02:28]} 8. Qxa3 {[%clk
01:30:35]} {[%emt 00:00:18]} Be4 {[%clk 01:28:38]} {[%emt 00:00:31]} 9. O-O
{[%clk 01:26:36]} {[%emt 00:04:30]} Nge7 {[%clk 01:27:23]} {[%emt 00:01:43]} 10.
Re1 {[%clk 01:25:24]} {[%emt 00:01:43]} O-O {[%clk 01:20:40]} {[%emt 00:07:13]}
11. Qb3 {[%clk 01:14:40]} {[%emt 00:11:15]} a5 {[%clk 01:16:51]} {[%emt
00:04:18]} 12. a4 {[%clk 01:13:53]} {[%emt 00:01:18]} Re8 {[%clk 01:04:54]}
{[%emt 00:12:25]} 13. Bf1 {[%clk 01:00:00]} {[%emt 00:14:24]} h6 {[%clk
00:47:43]} {[%emt 00:17:41]} 14. Bf4 {[%clk 00:38:29]} {[%emt 00:22:01]} Ra7
{[%clk 00:33:51]} {[%emt 00:14:22]} 15. Nd2 {[%clk 00:32:28]} {[%emt 00:06:31]}
Bh7 {[%clk 00:32:47]} {[%emt 00:01:33]} 16. e4 {[%clk 00:32:48]} {[%emt
00:00:12]} g5 {[%clk 00:30:19]} {[%emt 00:02:56]} 17. exd5 {[%clk 00:32:53]}
{[%emt 00:00:27]} exd5 {[%clk 00:25:36]} {[%emt 00:05:13]} 18. Be5 {[%clk
00:23:37]} {[%emt 00:09:46]} Qd7 {[%clk 00:21:02]} {[%emt 00:05:04]} 19. Bg2
{[%clk 00:16:22]} {[%emt 00:07:45]} Raa8 {[%clk 00:17:35]} {[%emt 00:03:57]} 20.
Bf6 {[%clk 00:09:11]} {[%emt 00:07:41]} Qd6 {[%clk 00:17:30]} {[%emt 00:00:35]}
21. Bxe7 {[%clk 00:09:35]} {[%emt 00:00:06]} Nxe7 {[%clk 00:17:45]} {[%emt
00:00:14]} 22. Re5 {[%clk 00:09:41]} {[%emt 00:00:24]} c6 {[%clk 00:16:11]}
{[%emt 00:02:04]} 23. Rae1 {[%clk 00:09:33]} {[%emt 00:00:38]} Qd7 {[%clk
00:14:28]} {[%emt 00:02:13]} 24. Nf1 {[%clk 00:07:59]} {[%emt 00:02:05]} Kg7
{[%clk 00:11:49]} {[%emt 00:03:08]} 25. h3 {[%clk 00:06:04]} {[%emt 00:02:25]}
Bf5 {[%clk 00:09:38]} {[%emt 00:02:41]} 26. Kh2 {[%clk 00:05:09]} {[%emt
00:01:25]} Be6 {[%clk 00:08:58]} {[%emt 00:01:10]} 27. Qd1 {[%clk 00:05:32]}
{[%emt 00:00:07]} Ng6 {[%clk 00:08:04]} {[%emt 00:01:23]} 28. R5e3 {[%clk
00:05:37]} {[%emt 00:00:26]} f5 {[%clk 00:08:05]} {[%emt 00:00:29]} 29. Nd2
{[%clk 00:04:09]} {[%emt 00:01:59]} f4 {[%clk 00:07:07]} {[%emt 00:01:27]} 30.
R3e2 {[%clk 00:04:29]} {[%emt 00:00:10]} g4 {[%clk 00:04:56]} {[%emt 00:02:41]}
31. hxg4 {[%clk 00:02:56]} {[%emt 00:02:03]} Bxg4 {[%clk 00:03:31]} {[%emt
00:01:55]} 32. Rxe8 {[%clk 00:02:22]} {[%emt 00:01:04]} fxg3+ {[%clk 00:03:27]}
{[%emt 00:00:34]} 33. fxg3 {[%clk 00:02:42]} {[%emt 00:00:10]} Rxe8 {[%clk
00:03:41]} 34. Bf3 {[%clk 00:01:57]} {[%emt 00:01:31]} Rxe1 {[%clk 00:01:55]}
{[%emt 00:02:17]} 35. Qxe1 {[%clk 00:02:20]} {[%emt 00:00:07]} Bxf3 {[%clk
00:02:12]} {[%emt 00:00:12]} 36. Nxf3 {[%clk 00:02:43]} {[%emt 00:00:07]} Qf5
{[%clk 00:02:04]} {[%emt 00:00:37]} 37. Qe2 {[%clk 00:02:37]} {[%emt 00:00:36]}
Kf7 {[%clk 00:01:50]} {[%emt 00:00:44]} 38. Kg2 {[%clk 00:02:25]} {[%emt
00:00:43]} Kf8 {[%clk 00:01:02]} {[%emt 00:01:19]} 39. Ne1 {[%clk 00:01:45]}
{[%emt 00:01:09]} Kg7 {[%clk 00:01:00]} {[%emt 00:00:31]} 40. Nd3 {[%clk
00:01:02]} {[%emt 00:01:14]} h5 {[%clk 00:01:11]} {[%emt 00:00:18]} 41. Qf3
{[%clk 00:26:29]} {[%emt 00:05:04]} Qg5 {[%clk 00:29:30]} {[%emt 00:02:10]} 42.
Kf2 {[%clk 00:26:42]} {[%emt 00:00:18]} h4 {[%clk 00:26:28]} {[%emt 00:03:32]}
43. gxh4 {[%clk 00:26:27]} {[%emt 00:00:45]} Qxh4+ {[%clk 00:26:46]} {[%emt
00:00:12]} 44. Ke2 {[%clk 00:24:46]} {[%emt 00:02:11]} b6 {[%clk 00:21:22]}
{[%emt 00:05:53]} 45. Kd2 {[%clk 00:23:18]} {[%emt 00:01:59]} Qh2+ {[%clk
00:20:41]} {[%emt 00:01:11]} 46. Kc1 {[%clk 00:23:32]} {[%emt 00:00:16]} Qd6
{[%clk 00:20:38]} {[%emt 00:00:32]} 47. Kb1 {[%clk 00:17:44]} {[%emt 00:06:19]}
c5 {[%clk 00:20:05]} {[%emt 00:01:03]} 48. dxc5 {[%clk 00:17:24]} {[%emt
00:00:51]} bxc5 {[%clk 00:20:32]} {[%emt 00:00:03]} 49. Qe3 {[%clk 00:17:37]}
{[%emt 00:00:16]} d4 {[%clk 00:13:09]} {[%emt 00:07:53]} 50. cxd4 {[%clk
00:18:01]} {[%emt 00:00:07]} cxd4 {[%clk 00:13:35]} {[%emt 00:00:04]} 51. Qg5
{[%clk 00:17:39]} {[%emt 00:00:51]} Qc7 {[%clk 00:08:42]} {[%emt 00:05:22]} 52.
Qd5 {[%clk 00:17:11]} {[%emt 00:00:59]} Qb6 {[%clk 00:09:07]} {[%emt 00:00:05]}
53. Nc5 {[%clk 00:15:32]} {[%emt 00:02:09]} Qb4 {[%clk 00:08:13]} {[%emt
00:01:24]} 54. Ne6+ {[%clk 00:10:56]} {[%emt 00:05:07]} Kf6 {[%clk 00:06:56]}
{[%emt 00:01:45]} 55. Nxd4 {[%clk 00:11:21]} {[%emt 00:00:06]} Qxa4 {[%clk
00:04:30]} {[%emt 00:02:55]} 56. Qf5+ {[%clk 00:08:03]} {[%emt 00:03:48]} Ke7
{[%clk 00:04:58]} {[%emt 00:00:03]} 57. Qe4+ {[%clk 00:06:27]} {[%emt
00:02:07]} Kf6 {[%clk 00:03:41]} {[%emt 00:01:46]} 58. Qf5+ {[%clk 00:05:58]}
{[%emt 00:00:59]} Ke7 {[%clk 00:04:09]} {[%emt 00:00:01]} 59. Qe6+ {[%clk
00:05:03]} {[%emt 00:01:26]} Kd8 {[%clk 00:04:38]} {[%emt 00:00:02]} 60. Qd5+
{[%clk 00:03:06]} {[%emt 00:02:27]} Ke7 {[%clk 00:02:53]} {[%emt 00:02:14]} 61.
b3 {[%clk 00:02:32]} {[%emt 00:01:05]} Qe8 {[%clk 00:02:33]} {[%emt 00:00:49]}
62. Qxa5 {[%clk 00:02:37]} {[%emt 00:00:25]} Qd7 {[%clk 00:01:51]} {[%emt
00:01:12]} 63. Qc5+ {[%clk 00:02:48]} {[%emt 00:00:20]} Kf6 {[%clk 00:02:05]}
{[%emt 00:00:15]} 64. Kc2 {[%clk 00:02:49]} {[%emt 00:00:29]} Ne5 {[%clk
00:02:04]} {[%emt 00:00:30]} 65. Qc3 {[%clk 00:02:05]} {[%emt 00:01:14]} Qh7+
{[%clk 00:02:08]} {[%emt 00:00:26]} 66. Kb2 {[%clk 00:01:20]} {[%emt 00:01:16]}
Nd3+ {[%clk 00:01:53]} {[%emt 00:00:45]} 67. Kb1 {[%clk 00:01:30]} {[%emt
00:00:20]} Kg5 {[%clk 00:01:29]} {[%emt 00:00:54]} 68. Qd2+ {[%clk 00:01:33]}
{[%emt 00:00:27]} Kg4 {[%clk 00:01:10]} {[%emt 00:00:49]} 69. Qg2+ {[%clk
00:01:10]} {[%emt 00:00:53]} Kf4 {[%clk 00:01:33]} {[%emt 00:00:07]} 70. Qf3+
{[%clk 00:01:05]} {[%emt 00:00:35]} Ke5 {[%clk 00:01:33]} {[%emt 00:00:30]} 71.
Nc2 {[%clk 00:01:11]} {[%emt 00:00:23]} Qe4 {[%clk 00:01:14]} {[%emt 00:00:49]}
72. Qxe4+ {[%clk 00:00:48]} {[%emt 00:00:53]} 1/2-1/2